lending/lending_fUSD_20240112
["ID","MTS","AMOUNT","RATE_DAILY","PERIOD"]
[311406425,1705077150249,-3000.0,0.00032,2]
[311406426,1705077150259,-3000.0,0.0003201,2]
[311406427,1705077150269,-151.76009724,0.00032012,2]
[311406428,1705077150278,-3000.0,0.0003202,2]
[311406429,1705077150287,-3000.0,0.0003203,2]
[311406430,1705077150297,-3000.0,0.0003204,2]
[311406431,1705077150306,-3000.0,0.0003205,2]
[311406432,1705077150315,-3000.0,0.0003206,2]
[311406433,1705077150325,-3000.0,0.0003207,2]
[311406434,1705077150335,-5000.0,0.00032075,2]
[311406435,1705077150344,-3780.781856,0.0003208,2]
[311406436,1705077150353,-4386.69552244,0.000321,2]
[311406437,1705077150363,-500.0,0.00032163,2]
[311406438,1705077150373,-565.631016,0.00032165,2]
[311406439,1705077150383,-672.643274,0.00032165,2]
[311406440,1705077150392,-1157.52,0.00032296,2]
[311406441,1705077150401,-500.0,0.00032344,2]
[311406442,1705077150411,-150.0,0.0003238,2]
[311406443,1705077150422,-27778.99329019,0.000324,7]
[311406444,1705077150431,-409.92,0.0003241,2]
[311406445,1705077150441,-500.0,0.00032525,2]
[311406446,1705077150451,-154.37,0.00032533,120]
[311406447,1705077150460,-565.631016,0.00032567,2]
[311406448,1705077150470,-672.643274,0.00032567,2]
[311406449,1705077150480,-737.6,0.00032581,2]
[311406450,1705077150491,-1000.0,0.000326,2]
[311406451,1705077150501,-1000.0,0.000326,2]
[311406452,1705077150511,-500.0,0.00032623,2]
[311406453,1705077150521,-500.0,0.00032623,2]
[311406454,1705077150533,-500.0,0.00032623,2]
[311406455,1705077150659,-500.0,0.00032623,2]
[311406456,1705077150669,-500.0,0.00032623,2]
[311406457,1705077150679,-500.0,0.00032623,2]
[311406458,1705077150688,-500.0,0.00032623,2]
[311406459,1705077150698,-500.0,0.00032623,2]
[311406460,1705077150707,-500.0,0.00032623,2]
[311406461,1705077150717,-500.0,0.00032623,2]
[311406462,1705077150726,-500.0,0.00032623,2]
[311406463,1705077150737,-500.0,0.00032623,2]
[311406464,1705077150747,-500.0,0.00032623,2]
[311406465,1705077150756,-500.0,0.00032623,2]
[311406466,1705077150766,-500.0,0.00032623,2]
[311406467,1705077150776,-500.0,0.00032623,2]
[311406468,1705077150785,-500.0,0.00032623,2]
[311406469,1705077150795,-500.0,0.00032623,2]
[311406470,1705077150805,-500.0,0.00032623,2]
[311406471,1705077150815,-500.0,0.00032623,2]
[311406472,1705077150825,-500.0,0.00032623,2]
[311406473,1705077150834,-500.0,0.00032623,2]
[311406474,1705077150845,-500.0,0.00032623,2]
[311406475,1705077150854,-500.0,0.00032623,2]
[311406476,1705077150864,-500.0,0.00032623,2]
[311406477,1705077150874,-500.0,0.00032623,2]
[311406478,1705077150883,-500.0,0.00032623,2]
[311406479,1705077150893,-500.0,0.00032623,2]
[311406480,1705077150903,-500.0,0.00032623,2]
[311406481,1705077150913,-154.1525,0.00032623,2]
[311406482,1705077150922,-191.812373,0.00032623,2]
[311406483,1705077150932,-1351.226481,0.00032623,2]
[311406484,1705077150942,-4482.663684,0.00032623,2]
[311406485,1705077150951,-2702.45296,0.00032623,2]
[311406486,1705077150960,-8715.05349,0.00032623,2]
[311406487,1705077150970,-154.152499,0.00032623,2]
[311406488,1705077150979,-3452.938474,0.00032623,2]
[311406489,1705077150991,-9071.15429,0.00032623,2]
[311406490,1705077151000,-154.152499,0.00032623,2]
[311406491,1705077151011,-681.97021,0.00032623,2]
[311406492,1705077151020,-172.498787,0.00032623,2]
[311406493,1705077151030,-171.476429,0.00032623,2]
[311406494,1705077151040,-151.76009724,0.00032652,2]
[311406495,1705077151049,-500.0,0.00032705,2]
[311406496,1705077151060,-3000.0,0.000328,2]
[311406497,1705077151069,-375.599119,0.000328,2]
[311406498,1705077151079,-150.0,0.00032826,2]
[311406499,1705077151088,-225.70934967,0.00032876,7]
[311406500,1705077151097,-500.0,0.00032876,7]
[311406501,1705077151107,-190.38008242,0.00032876,7]
[311406502,1705077151116,-316.60292514,0.00032876,7]
[311406503,1705077151125,-500.0,0.00032876,7]
[311406504,1705077151136,-500.0,0.00032876,7]
[311406505,1705077151145,-242.31816579,0.00032876,7]
[311406506,1705077151156,-368.02450585,0.00032876,7]
[311406507,1705077151165,-214.24736501,0.00032876,7]
[311406508,1705077151175,-220.81470351,0.00032876,7]
[311406509,1705077151184,-500.0,0.00032876,2]
[311406510,1705077151194,-500.0,0.00032876,2]
[311406511,1705077151203,-500.0,0.00032876,2]
[311406512,1705077151213,-500.0,0.00032876,2]
[311406513,1705077151222,-500.0,0.00032876,2]
[311406514,1705077151232,-500.0,0.00032876,2]
[311406515,1705077151244,-500.0,0.00032876,2]
[311406516,1705077151254,-500.0,0.00032876,2]
[311406517,1705077151263,-471.68267197,0.00032876,2]
[311406518,1705077151273,-500.0,0.00032876,2]
[311406519,1705077151282,-500.0,0.00032876,2]
[311406520,1705077151292,-500.0,0.00032876,2]
[311406521,1705077151301,-500.0,0.00032876,2]
[311406522,1705077151311,-500.0,0.00032876,2]
[311406523,1705077151320,-500.0,0.00032876,2]
[311406524,1705077151330,-500.0,0.00032876,2]
[311406525,1705077151339,-500.0,0.00032876,2]
[311406526,1705077151349,-500.0,0.00032876,2]
[311406527,1705077151358,-270.37263434,0.00032876,2]
[311406528,1705077151368,-1500.0,0.00032876,2]
[311406529,1705077151378,-500.0,0.00032876,2]
[311406530,1705077151388,-500.0,0.00032876,2]
[311406531,1705077151399,-500.0,0.00032876,2]
[311406532,1705077151408,-500.0,0.00032876,2]
[311406533,1705077151418,-500.0,0.00032876,2]
[311406534,1705077151428,-500.0,0.00032876,2]
[311406535,1705077151439,-500.0,0.00032876,2]
[311406536,1705077151449,-500.0,0.00032876,2]
[311406537,1705077151459,-500.0,0.00032876,2]
[311406538,1705077151469,-500.0,0.00032876,2]
[311406539,1705077151479,-500.0,0.00032876,2]
[311406540,1705077151491,-500.0,0.00032876,2]
[311406541,1705077151501,-500.0,0.00032876,2]
[311406542,1705077151511,-500.0,0.00032876,2]
[311406543,1705077151521,-500.0,0.00032876,2]
[311406544,1705077151534,-153.84,0.00032877,2]
[311406545,1705077151545,-16016.0,0.00032877,2]
[311406546,1705077151555,-808.39,0.00032877,15]
[311406547,1705077151565,-150.0,0.00032877,30]
[311406548,1705077151575,-150.0,0.00032877,30]
[311406549,1705077151586,-150.0,0.00032877,30]
[311406550,1705077151596,-150.0,0.00032877,30]
[311406551,1705077151606,-150.0,0.00032877,30]
[311406552,1705077151616,-150.0,0.00032877,30]
[311406553,1705077151626,-156.25158029,0.00032877,30]
[311406554,1705077151635,-1403.261193,0.00032877,2]
[311406555,1705077151645,-158.07,0.0003288,2]
[311406556,1705077151655,-500.0,0.00032886,2]
[311406557,1705077151665,-1022.508,0.00032967,2]
[311406558,1705077151675,-565.631016,0.00032969,2]
[311406559,1705077151686,-672.643274,0.00032969,2]
[311406560,1705077151695,-163.53,0.00032979,2]
[311406561,1705077151705,-100000.0,0.00033,3]
[311406562,1705077151715,-500.0,0.00033,2]
[311406563,1705077151725,-1247.21446784,0.00033,2]
[311406564,1705077151736,-1450.0,0.00033,3]
[311406565,1705077151746,-1351.226481,0.00033031,2]
[311406566,1705077151756,-4482.663684,0.00033031,2]
[311406567,1705077151766,-2702.45296,0.00033031,2]
[311406568,1705077151775,-8715.05349,0.00033031,2]
[311406569,1705077151785,-3452.938474,0.00033031,2]
[311406570,1705077151794,-9071.15429,0.00033031,2]
[311406571,1705077151804,-681.97021,0.00033031,2]
[311406572,1705077151814,-500.0,0.00033067,2]
[311406573,1705077151824,-205.0,0.0003307,2]
[311406574,1705077151834,-1403.261193,0.00033165,2]
[311406575,1705077151844,-172.498787,0.00033167,2]
[311406576,1705077151853,-764.47,0.0003322,2]
[311406577,1705077151863,-500.0,0.00033247,2]
[311406578,1705077151873,-150.0,0.00033273,2]
[311406579,1705077151883,-1157.52,0.00033274,2]
[311406580,1705077151892,-151.76009724,0.00033292,2]
[311406581,1705077151902,-205.0,0.00033335,18]
[311406582,1705077151912,-565.631016,0.00033372,2]
[311406583,1705077151921,-672.643274,0.00033372,2]
[311406584,1705077151931,-1000.0,0.000334,2]
[311406585,1705077151941,-343.0,0.000334,2]
[311406586,1705077151950,-1500.0,0.00033424,4]
[311406587,1705077151960,-500.0,0.00033428,2]
[311406588,1705077151970,-1351.226481,0.00033439,2]
[311406589,1705077151979,-4482.663684,0.00033439,2]
[311406590,1705077151990,-2702.45296,0.00033439,2]
[311406591,1705077152000,-8715.05349,0.00033439,2]
[311406592,1705077152010,-3452.938474,0.00033439,2]
[311406593,1705077152019,-9071.15429,0.00033439,2]
[311406594,1705077152029,-681.97021,0.00033439,2]
[311406595,1705077152038,-1403.261193,0.00033454,2]
[311406596,1705077152049,-5000.0,0.00033519,4]
[311406597,1705077152058,-10000.0,0.00033573,2]
[311406598,1705077152068,-1000.0,0.000336,2]
[311406599,1705077152078,-1000.0,0.000336,2]
[311406600,1705077152088,-500.0,0.00033609,2]
[311406601,1705077152097,-50000.0,0.0003364,10]
[311406602,1705077152106,-3913.41521287,0.0003364,9]
[311406603,1705077152116,-50000.0,0.0003364,10]
[311406604,1705077152125,-14604.09823449,0.0003364,10]
[311406605,1705077152135,-22880.84085466,0.0003364,10]
[311406606,1705077152145,-31969.12151071,0.0003364,10]
[311406607,1705077152154,-21027.19333972,0.0003364,10]
[311406608,1705077152163,-23118.28352453,0.0003364,10]
[311406609,1705077152172,-172.498787,0.00033711,2]
[311406610,1705077152182,-5218.58648314,0.00033718,2]
[311406611,1705077152192,-5000.0,0.00033718,2]
[311406612,1705077152201,-5000.0,0.00033718,2]
[311406613,1705077152211,-5000.0,0.00033718,2]
[311406614,1705077152220,-150.0,0.0003372,2]
[311406615,1705077152230,-1403.261193,0.00033742,2]
[311406616,1705077152242,-565.631016,0.00033774,2]
[311406617,1705077152251,-672.643274,0.00033774,2]
[311406618,1705077152261,-500.0,0.00033789,2]
[311406619,1705077152270,-153.84,0.0003379,2]
[311406620,1705077152278,-5423.314843,0.000338,2]
[311406621,1705077152287,-1351.226481,0.00033847,2]
[311406622,1705077152297,-4482.663684,0.00033847,2]
[311406623,1705077152306,-2702.45296,0.00033847,2]
[311406624,1705077152316,-8715.05349,0.00033847,2]
[311406625,1705077152326,-3452.938474,0.00033847,2]
[311406626,1705077152336,-9071.15429,0.00033847,2]
[311406627,1705077152346,-681.97021,0.00033847,2]
[311406628,1705077152356,-580.24689749,0.00033912,7]
[311406629,1705077152366,-500.0,0.00033912,7]
[311406630,1705077152376,-830.96992149,0.00033912,7]
[311406631,1705077152386,-4043.60410072,0.00033912,7]
[311406632,1705077152396,-2622.15484745,0.00033912,7]
[311406633,1705077152405,-14086.67520824,0.00033912,7]
[311406634,1705077152415,-3588.97911809,0.00033912,7]
[311406635,1705077152425,-976.56519532,0.00033912,7]
[311406636,1705077152435,-443.08823451,0.00033912,7]
[311406637,1705077152444,-772.85549276,0.00033912,7]
[311406638,1705077152454,-2120.78981695,0.00033912,7]
[311406639,1705077152463,-500.0,0.00033912,7]
[311406640,1705077152473,-1000.0,0.00033912,7]
[311406641,1705077152483,-1141.91592224,0.00033912,7]
[311406642,1705077152498,-551.66579873,0.00033912,7]
[311406643,1705077152507,-218.21570454,0.00033912,6]
[311406644,1705077152517,-151.76009724,0.00033931,2]
[311406645,1705077152527,-500.0,0.0003397,2]
[311406646,1705077152537,-1500.0,0.00033972,6]
[311406647,1705077152550,-152.0,0.00033982,3]
[311406648,1705077152560,-100000.0,0.00034,4]
[311406649,1705077152570,-1000.0,0.00034,4]
[311406650,1705077152580,-115637.10174712,0.00034,2]
[311406651,1705077152591,-1000.0,0.00034,15]
[311406652,1705077152601,-50000.0,0.00034,2]
[311406653,1705077152611,-155.0,0.00034,2]
[311406654,1705077152621,-801.97521111,0.00034,4]
[311406655,1705077152632,-3148.066929,0.00034,6]
[311406656,1705077152643,-1403.261193,0.00034031,2]
[311406657,1705077152653,-205.0,0.0003404,2]
[311406658,1705077152662,-200.0,0.00034109,2]
[311406659,1705077152672,-1609.8366501,0.00034115,2]
[311406660,1705077152683,-10343.789703,0.00034115,2]
[311406661,1705077152693,-305.8132436,0.00034115,2]
[311406662,1705077152702,-150000.0,0.00034138,3]
[311406663,1705077152712,-150000.0,0.00034138,3]
[311406664,1705077152722,-150000.0,0.00034138,3]
[311406665,1705077152732,-150000.0,0.00034138,3]
[311406666,1705077152746,-137633.42490885,0.00034138,3]
[311406667,1705077152756,-500.0,0.00034151,2]
[311406668,1705077152765,-150.0,0.00034166,2]
[311406669,1705077152775,-337.55,0.0003419,2]
[311406670,1705077152784,-1157.52,0.00034253,2]
[311406671,1705077152793,-1351.226481,0.00034255,2]
[311406672,1705077152803,-4482.663684,0.00034255,2]
[311406673,1705077152812,-2702.45296,0.00034255,2]
[311406674,1705077152821,-8715.05349,0.00034255,2]
[311406675,1705077152831,-3452.938474,0.00034255,2]
[311406676,1705077153107,-9071.15429,0.00034255,2]
[311406677,1705077153118,-681.97021,0.00034255,2]
[311406678,1705077153128,-172.498787,0.00034255,2]
[311406679,1705077153138,-171.476429,0.00034255,2]
[311406680,1705077153148,-1403.261193,0.00034319,2]
[311406681,1705077153157,-500.0,0.00034331,2]
[311406682,1705077153167,-587.61,0.00034344,2]
[311406683,1705077153176,-628.32,0.00034344,2]
[311406684,1705077153186,-164.05,0.00034344,2]
[311406685,1705077153196,-150.0,0.00034344,2]
[311406686,1705077153205,-314.16,0.00034397,2]
[311406687,1705077153215,-417.82,0.00034397,2]
[311406688,1705077153225,-417.82,0.00034397,2]
[311406689,1705077153235,-417.82,0.00034397,2]
[311406690,1705077153248,-314.16,0.00034397,2]
[311406691,1705077153258,-500.0,0.00034512,2]
[311406692,1705077153268,-5417.486406,0.0003452,2]
[311406693,1705077153278,-55963.339141,0.0003452,2]
[311406694,1705077153287,-1474.48767,0.0003452,2]
[311406695,1705077153297,-1500.0,0.0003452,8]
[311406696,1705077153307,-7250.66,0.00034521,2]
[311406697,1705077153317,-151.76009724,0.00034571,2]
[311406698,1705077153327,-500.0,0.00034599,2]
[311406699,1705077153336,-200.0,0.000346,2]
[311406700,1705077153346,-1000.0,0.000346,2]
[311406701,1705077153356,-1000.0,0.000346,2]
[311406702,1705077153365,-1403.261193,0.00034608,2]
[311406703,1705077153375,-150.0,0.00034613,2]
[311406704,1705077153385,-536.74,0.00034649,2]
[311406705,1705077153395,-2367.07,0.00034649,2]
[311406706,1705077153405,-400.0,0.00034649,2]
[311406707,1705077153415,-415.25,0.00034649,2]
[311406708,1705077153425,-180.0,0.00034658,2]
[311406709,1705077153435,-500.0,0.00034692,2]
[311406710,1705077153445,-150.0,0.000347,23]
[311406711,1705077153455,-170.8080721,0.00034701,4]
[311406712,1705077153465,-153.84,0.00034703,2]
[311406713,1705077153475,-888.5,0.00034703,2]
[311406714,1705077153485,-914.75,0.00034739,2]
[311406715,1705077153498,-417.82,0.00034739,2]
[311406716,1705077153508,-627.64,0.00034739,2]
[311406717,1705077153519,-416.53,0.00034739,2]
[311406718,1705077153529,-8126.22961,0.00034794,2]
[311406719,1705077153539,-83945.008711,0.00034794,2]
[311406720,1705077153548,-2211.731505,0.00034794,2]
[311406721,1705077153558,-500.0,0.00034794,2]
[311406722,1705077153568,-500.0,0.00034873,2]
[311406723,1705077153579,-500.0,0.00034891,3]
[311406724,1705077153589,-1403.261193,0.00034896,2]
[311406725,1705077153599,-8949.23110012,0.000349,4]
[311406726,1705077153609,-12153.87317382,0.000349,3]
[311406727,1705077153619,-500.0,0.000349,3]
[311406728,1705077153629,-1762.18406533,0.000349,2]
[311406729,1705077153639,-1762.18406525,0.000349,2]
[311406730,1705077153649,-1762.18406525,0.000349,2]
[311406731,1705077153659,-1762.18406525,0.000349,2]
[311406732,1705077153669,-1762.18406525,0.000349,2]
[311406733,1705077153680,-1762.18406525,0.000349,2]
[311406734,1705077153690,-1762.18406525,0.000349,2]
[311406735,1705077153700,-1762.18406525,0.000349,2]
[311406736,1705077153709,-10834.972813,0.00034931,2]
[311406737,1705077153720,-111926.678282,0.00034931,2]
[311406738,1705077153729,-2948.97534,0.00034931,2]
[311406739,1705077153741,-5000.0,0.00034963,4]
[311406740,1705077153750,-343.16341787,0.0003498,3]
[311406741,1705077153760,-292.5,0.0003498,3]
[311406742,1705077153769,-16000.0,0.00034997,3]
[311406743,1705077153779,-100000.0,0.00035,5]
[311406744,1705077153789,-390.86946511,0.00035,30]
[311406745,1705077153798,-552.99962881,0.00035,4]
[311406746,1705077153808,-255.47708732,0.00035,4]
[311406747,1705077153818,-16426.79456655,0.00035,2]
[311406748,1705077153828,-150.0,0.00035,7]
[311406749,1705077153837,-2529.27982805,0.00035,10]
[311406750,1705077153847,-512.35825795,0.00035,14]
[311406751,1705077153857,-2500.0,0.00035,2]
[311406752,1705077153867,-1804.81442942,0.00035,4]
[311406753,1705077153876,-443408.06783948,0.00035,2]
[311406754,1705077153886,-55898.53680863,0.00035,5]
[311406755,1705077153895,-500.0,0.00035,2]
[311406756,1705077153906,-4992.53950682,0.00035,16]
[311406757,1705077153915,-179.82017932,0.00035,4]
[311406758,1705077153925,-1256.88761536,0.00035,4]
[311406759,1705077153934,-419.51671793,0.00035,5]
[311406760,1705077153944,-1482.07087207,0.00035,2]
[311406761,1705077153953,-1500.0,0.00035,3]
[311406762,1705077153963,-5000.0,0.00035,2]
[311406763,1705077153972,-155.0,0.00035,2]
[311406764,1705077153982,-3000.0,0.00035,8]
[311406765,1705077153993,-234.4768912,0.00035,2]
[311406766,1705077154002,-205.0,0.00035,2]
[311406767,1705077154011,-900.0,0.00035,36]
[311406768,1705077154021,-178.94251473,0.00035,2]
[311406769,1705077154030,-178.94251473,0.00035,2]
[311406770,1705077154040,-178.94251473,0.00035,2]
[311406771,1705077154049,-178.94251473,0.00035,2]
[311406772,1705077154059,-178.94251473,0.00035,2]
[311406773,1705077154068,-178.94251473,0.00035,2]
[311406774,1705077154078,-178.94251473,0.00035,2]
[311406775,1705077154088,-178.94251473,0.00035,2]
[311406776,1705077154098,-178.94251473,0.00035,2]
[311406777,1705077154107,-178.94251473,0.00035,2]
[311406778,1705077154117,-178.94251473,0.00035,2]
[311406779,1705077154127,-178.94251473,0.00035,2]
[311406780,1705077154137,-178.94251473,0.00035,2]
[311406781,1705077154146,-178.94251473,0.00035,2]
[311406782,1705077154155,-178.94251473,0.00035,2]
[311406783,1705077154165,-178.94251473,0.00035,2]
[311406784,1705077154175,-178.94251473,0.00035,2]
[311406785,1705077154184,-178.94251473,0.00035,2]
[311406786,1705077154193,-178.94251473,0.00035,2]
[311406787,1705077154203,-178.94251473,0.00035,2]
[311406788,1705077154212,-178.94251473,0.00035,2]
[311406789,1705077154222,-178.94251473,0.00035,2]
[311406790,1705077154232,-178.94251473,0.00035,2]
[311406791,1705077154244,-178.94251473,0.00035,2]
[311406792,1705077154254,-178.94251473,0.00035,2]
[311406793,1705077154263,-178.94251473,0.00035,2]
[311406794,1705077154273,-178.94251473,0.00035,2]
[311406795,1705077154282,-178.94251473,0.00035,2]
[311406796,1705077154292,-178.94251473,0.00035,2]
[311406797,1705077154301,-178.94251473,0.00035,2]
[311406798,1705077154311,-178.94251473,0.00035,2]
[311406799,1705077154320,-178.94251473,0.00035,2]
[311406800,1705077154330,-178.94251473,0.00035,2]
[311406801,1705077154340,-178.94251473,0.00035,2]
[311406802,1705077154349,-178.94251473,0.00035,2]
[311406803,1705077154359,-178.94251473,0.00035,2]
[311406804,1705077154369,-178.94251473,0.00035,2]
[311406805,1705077154379,-178.94251473,0.00035,2]
[311406806,1705077154389,-178.94251473,0.00035,2]
[311406807,1705077154399,-178.94251473,0.00035,2]
[311406808,1705077154408,-178.94251473,0.00035,2]
[311406809,1705077154418,-178.94251473,0.00035,2]
[311406810,1705077154428,-178.94251473,0.00035,2]
[311406811,1705077154437,-178.94251473,0.00035,2]
[311406812,1705077154447,-178.94251473,0.00035,2]
[311406813,1705077154457,-178.94251473,0.00035,2]
[311406814,1705077154466,-178.94251473,0.00035,2]
[311406815,1705077154476,-178.94251473,0.00035,2]
[311406816,1705077154486,-178.94251473,0.00035,2]
[311406817,1705077154498,-178.94251473,0.00035,2]
[311406818,1705077154508,-200.0,0.00035,5]
[311406819,1705077154518,-39009.59890117,0.00035,2]
[311406820,1705077154527,-39009.59890117,0.00035,2]
[311406821,1705077154540,-39009.59890117,0.00035,2]
[311406822,1705077154551,-39009.59890117,0.00035,2]
[311406823,1705077154560,-39009.59890117,0.00035,2]
[311406824,1705077154570,-3000.0,0.00035,2]
[311406825,1705077154580,-1824.05196355,0.00035,2]
[311406826,1705077154589,-1824.05196355,0.00035,2]
[311406827,1705077154599,-1824.05196355,0.00035,2]
[311406828,1705077154608,-1824.05196355,0.00035,2]
[311406829,1705077154618,-1824.05196355,0.00035,2]
[311406830,1705077154629,-1824.05196355,0.00035,2]
[311406831,1705077154638,-1824.05196355,0.00035,2]
[311406832,1705077154647,-1824.05196355,0.00035,2]
[311406833,1705077154657,-1824.05196355,0.00035,2]
[311406834,1705077154666,-1824.05196355,0.00035,2]
[311406835,1705077154676,-1824.05196355,0.00035,2]
[311406836,1705077154685,-1824.05196355,0.00035,2]
[311406837,1705077154695,-1824.05196355,0.00035,2]
[311406838,1705077154704,-1824.05196355,0.00035,2]
[311406839,1705077154714,-1824.05196355,0.00035,2]
[311406840,1705077154725,-1824.05196355,0.00035,2]
[311406841,1705077154734,-1824.05196355,0.00035,2]
[311406842,1705077154745,-1824.05196355,0.00035,2]
[311406843,1705077154754,-1824.05196355,0.00035,2]
[311406844,1705077154763,-1824.05196355,0.00035,2]
[311406845,1705077154773,-1824.05196355,0.00035,2]
[311406846,1705077154782,-1824.05196355,0.00035,2]
[311406847,1705077154791,-1824.05196355,0.00035,2]
[311406848,1705077154802,-1824.05196355,0.00035,2]
[311406849,1705077154811,-1824.05196355,0.00035,2]
[311406850,1705077154820,-1824.05196355,0.00035,2]
[311406851,1705077154830,-1824.05196355,0.00035,2]
[311406852,1705077154839,-1824.05196355,0.00035,2]
[311406853,1705077154848,-1824.05196355,0.00035,2]
[311406854,1705077154857,-1824.05196355,0.00035,2]
[311406855,1705077154866,-1824.05196355,0.00035,2]
[311406856,1705077154876,-1824.05196355,0.00035,2]
[311406857,1705077154885,-1824.05196355,0.00035,2]
[311406858,1705077154894,-1824.05196355,0.00035,2]
[311406859,1705077154904,-1824.05196355,0.00035,2]
[311406860,1705077154913,-1824.05196355,0.00035,2]
[311406861,1705077154922,-1824.05196355,0.00035,2]
[311406862,1705077154931,-1824.05196355,0.00035,2]
[311406863,1705077154940,-1824.05196355,0.00035,2]
[311406864,1705077154949,-1824.05196355,0.00035,2]
[311406865,1705077154958,-1824.05196355,0.00035,2]
[311406866,1705077154968,-1824.05196355,0.00035,2]
[311406867,1705077154977,-1824.05196355,0.00035,2]
[311406868,1705077154986,-1824.05196355,0.00035,2]
[311406869,1705077154996,-1824.05196355,0.00035,2]
[311406870,1705077155005,-1824.05196355,0.00035,2]
[311406871,1705077155015,-1824.05196355,0.00035,2]
[311406872,1705077155025,-1824.05196355,0.00035,2]
[311406873,1705077155035,-1824.05196355,0.00035,2]
[311406874,1705077155044,-1824.05196355,0.00035,2]
[311406875,1705077155055,-1824.05196355,0.00035,2]
[311406876,1705077155065,-1824.05196355,0.00035,2]
[311406877,1705077155074,-1824.05196355,0.00035,2]
[311406878,1705077155084,-1824.05196355,0.00035,2]
[311406879,1705077155094,-1824.05196355,0.00035,2]
[311406880,1705077155103,-1824.05196355,0.00035,2]
[311406881,1705077155113,-1824.05196355,0.00035,2]
[311406882,1705077155122,-1824.05196355,0.00035,2]
[311406883,1705077155131,-1824.05196355,0.00035,2]
[311406884,1705077155141,-1824.05196355,0.00035,2]
[311406885,1705077155151,-1824.05196355,0.00035,2]
[311406886,1705077155160,-1824.05196355,0.00035,2]
[311406887,1705077155169,-1824.05196355,0.00035,2]
[311406888,1705077155177,-1824.05196355,0.00035,2]
[311406889,1705077155186,-1824.05196355,0.00035,2]
[311406890,1705077155194,-1824.05196355,0.00035,2]
[311406891,1705077155203,-1824.05196355,0.00035,2]
[311406892,1705077155212,-1824.05196355,0.00035,2]
[311406893,1705077155222,-1824.05196355,0.00035,2]
[311406894,1705077155232,-1824.05196355,0.00035,2]
[311406895,1705077155243,-1824.05196355,0.00035,2]
[311406896,1705077155252,-1824.05196355,0.00035,2]
[311406897,1705077155262,-1824.05196355,0.00035,2]
[311406898,1705077155271,-1824.05196355,0.00035,2]
[311406899,1705077155281,-1824.05196355,0.00035,2]
[311406900,1705077155291,-1824.05196355,0.00035,2]
[311406901,1705077155301,-1824.05196355,0.00035,2]
[311406902,1705077155310,-1824.05196355,0.00035,2]
[311406903,1705077155320,-1824.05196355,0.00035,2]
[311406904,1705077155330,-1824.05196355,0.00035,2]
[311406905,1705077155339,-1824.05196355,0.00035,2]
[311406906,1705077155401,-1824.05196355,0.00035,2]
[311406907,1705077155411,-1824.05196355,0.00035,2]
[311406908,1705077155420,-1824.05196355,0.00035,2]
[311406909,1705077155429,-1824.05196355,0.00035,2]
[311406910,1705077155439,-1824.05196355,0.00035,2]
[311406911,1705077155448,-1824.05196355,0.00035,2]
[311406912,1705077155457,-1824.05196355,0.00035,2]
[311406913,1705077155467,-1824.05196355,0.00035,2]
[311406914,1705077155476,-3000.0,0.0003501,8]
[311406915,1705077155486,-3000.0,0.0003502,8]
[311406916,1705077155496,-3000.0,0.0003503,8]
[311406917,1705077155505,-5199.837552,0.0003504,9]
[311406918,1705077155515,-1762.18406525,0.00035042,2]
[311406919,1705077155525,-939.95,0.00035044,2]
[311406920,1705077155534,-500.0,0.00035054,2]
[311406921,1705077155544,-150.0,0.0003506,2]
[311406922,1705077155553,-13543.716016,0.00035068,2]
[311406923,1705077155562,-139908.347853,0.00035068,2]
[311406924,1705077155571,-3686.219175,0.00035068,2]